{"text_format":"3","workbook":"xlsx","n_sheets":2,"sheets":["INÍCIO","FERRAMENTA DE ORÇAMENTO"],"not_rendered":{"defined_names":2},"read":"whole","date_system":"1900"}

{"sheet":"INÍCIO","index":0,"n_rows":7,"n_cols":2,"rows_kept":7}
[null,"ACERCA DESTE MODELO"]
[null,"Utilize esta Ferramenta de Orçamentação de Sites para monitorizar o Investimento Inicial e os respetivos Benefícios e Custos."]
[null,"Preencha o Nome da Empresa e a Data."]
[null,"Introduza os detalhes nas tabelas para calcular automaticamente os Totais e as Métricas de Avaliação."]
[null,"Nota:  "]
[null,"Estão disponíveis instruções adicionais na coluna A de cada folha de cálculo da FERRAMENTA DE ORÇAMENTO. O texto está intencionalmente oculto. Para remover o texto, selecione a coluna A e, em seguida, selecione Eliminar. Para mostrar o texto, selecione a coluna A e, em seguida, mude a cor do tipo de letra."]
[null,"Para saber mais sobre as tabelas na folha de cálculo, prima Shift+F10 numa tabela, selecione a opção Tabela e, em seguida, selecione Texto Alternativo."]

{"sheet":"FERRAMENTA DE ORÇAMENTO","index":1,"n_rows":44,"n_cols":6,"rows_kept":44,"merged":[[14,1,14,5],[22,1,22,5],[30,1,30,5],[39,1,39,5]]}
["Crie um Orçamento para um Site nesta folha de cálculo Existem instruções úteis sobre como utilizar esta folha de cálculo nas células desta coluna. Prima a Seta Para Baixo para começar."]
["Introduza o Nome da Empresa na célula à direita.","Nome da Empresa"]
["O título desta folha de cálculo está na célula à direita.","Ferramenta de Orçamentação de Sites"]
["Introduza a Data na célula à direita.","Data"]
["A sugestão está na célula à direita.","As células a cinzento contêm cálculos que não devem ser alterados."]
["Introduza os detalhes na tabela Taxa a partir da célula à direita. A instrução seguinte está na célula A10.","Dados da Empresa","Taxa"]
[null,"Taxa de retorno necessária",{"v":0.1,"d":"10%"}]
[null,"Taxa de imposto",{"v":0.3,"d":"30%"}]
[]
["Introduza os detalhes na tabela Investimento Inicial a partir da célula à direita. A instrução seguinte está na célula A16.","Investimento Inicial no Site","ANO","1","2","3"]
[null,"Hardware (por exemplo, servidores)",{"v":25000,"d":"25,000.00 €"}]
[null,"Software (por exemplo, software de catálogo de comércio eletrónico)",{"v":15000,"d":"15,000.00 €"}]
[null,"Desenvolvimento (por exemplo, design do site por terceiros e programação)",{"v":150000,"d":"150,000.00 €"}]
[null,"Investimentos Iniciais Totais",{"$f":"SUBTOTAL(109,InvestimentoInicial[ANO])","v":{"v":190000,"d":"190,000.00 €"}}]
[]
["Introduza os detalhes na tabela Benefícios a partir da célula à direita. A instrução seguinte está na célula A24.","Benefícios do Site","ANO","1","2","3"]
[null,"Vendas diretas",null,{"v":15000,"d":"15,000.00 €"},{"v":50000,"d":"50,000.00 €"},{"v":75000,"d":"75,000.00 €"}]
[null,"Vendas incrementais resultantes da eficácia do vendedor/promoções",null,{"v":25000,"d":"25,000.00 €"},{"v":25000,"d":"25,000.00 €"},{"v":25000,"d":"25,000.00 €"}]
[null,"Vendas incrementais resultantes do aumento da participação de parceiros",null,{"v":25000,"d":"25,000.00 €"},{"v":25000,"d":"25,000.00 €"},{"v":25000,"d":"25,000.00 €"}]
[null,"Custos de viagem reduzidos",null,{"v":25000,"d":"25,000.00 €"},{"v":25000,"d":"25,000.00 €"},{"v":25000,"d":"25,000.00 €"}]
[null,"Custos de apoio o cliente reduzidos",null,{"v":50000,"d":"50,000.00 €"},{"v":50000,"d":"50,000.00 €"},{"v":50000,"d":"50,000.00 €"}]
[null,"Benefícios Totais",null,{"$f":"SUBTOTAL(109,Benefícios[1])","v":{"v":140000,"d":"140,000.00 €"}},{"$f":"SUBTOTAL(109,Benefícios[2])","v":{"v":175000,"d":"175,000.00 €"}},{"$f":"SUBTOTAL(109,Benefícios[3])","v":{"v":200000,"d":"200,000.00 €"}}]
[]
["Introduza os detalhes na tabela Custos a partir da célula à direita. Os valores são calculados automaticamente nas células que contêm a fórmula. A instrução seguinte está na célula A32.","Custos (excluindo os Investimentos Iniciais de Capital)","ANO","1","2","3"]
[null,"Custos das vendas",null,{"v":7500,"d":"7,500.00 €"},{"v":25000,"d":"25,000.00 €"},{"v":37500,"d":"37,500.00 €"}]
[null,"Manutenção",null,{"v":15000,"d":"15,000.00 €"},{"v":15000,"d":"15,000.00 €"},{"v":15000,"d":"15,000.00 €"}]
[null,"Gestão de Projetos, suporte ao cliente",null,{"v":35000,"d":"35,000.00 €"},{"v":35000,"d":"35,000.00 €"},{"v":35000,"d":"35,000.00 €"}]
[null,"Publicidade online, registo nos motores de busca",null,{"v":10000,"d":"10,000.00 €"},{"v":10000,"d":"10,000.00 €"},{"v":10000,"d":"10,000.00 €"}]
[null,"Depreciação dos gastos de capital (é utilizado um período de 3 anos nos cálculos)",null,{"$f":"InvestimentoInicial[[#Totals],[ANO]]/3","v":{"v":63333.333333333336,"d":"63,333.33 €"}},{"$f":"InvestimentoInicial[[#Totals],[ANO]]/3","v":{"v":63333.333333333336,"d":"63,333.33 €"}},{"$f":"InvestimentoInicial[[#Totals],[ANO]]/3","v":{"v":63333.333333333336,"d":"63,333.33 €"}}]
[null,"Custos Totais",null,{"$f":"SUBTOTAL(109,Custos[1])","v":{"v":130833.33333333334,"d":"130,833.33 €"}},{"$f":"SUBTOTAL(109,Custos[2])","v":{"v":148333.33333333334,"d":"148,333.33 €"}},{"$f":"SUBTOTAL(109,Custos[3])","v":{"v":160833.33333333334,"d":"160,833.33 €"}}]
[]
["Os valores são calculados automaticamente na tabela Totais a partir da célula à direita. A instrução seguinte está na célula A40.","Totais","ANO","1","2","3"]
[null,"Benefícios Líquidos",null,{"$f":"Benefícios[[#Totals],[1]]-Custos[[#Totals],[1]]","v":{"v":9166.666666666657,"d":"9,166.67 €"}},{"$f":"Benefícios[[#Totals],[2]]-Custos[[#Totals],[2]]","v":{"v":26666.666666666657,"d":"26,666.67 €"}},{"$f":"Benefícios[[#Totals],[3]]-Custos[[#Totals],[3]]","v":{"v":39166.66666666666,"d":"39,166.67 €"}}]
[null,"Imposto",null,{"$f":"D33*TaxaDoImposto","v":{"v":2749.999999999997,"d":"2,750.00 €"}},{"$f":"E33*TaxaDoImposto","v":{"v":7999.999999999996,"d":"8,000.00 €"}},{"$f":"F33*TaxaDoImposto","v":{"v":11749.999999999996,"d":"11,750.00 €"}}]
[null,"Valor após o imposto",null,{"$f":"D33-D34","v":{"v":6416.666666666661,"d":"6,416.67 €"}},{"v":18666.66666666666,"d":"18,666.67 €"},{"v":27416.66666666666,"d":"27,416.67 €"}]
[null,"Retorno de depreciação",null,{"$f":"D29","v":{"v":63333.333333333336,"d":"63,333.33 €"}},{"$f":"E29","v":{"v":63333.333333333336,"d":"63,333.33 €"}},{"$f":"F29","v":{"v":63333.333333333336,"d":"63,333.33 €"}}]
[null,"Fluxo de caixa",{"$f":"-InvestimentoInicial[[#Totals],[ANO]]","v":{"v":-190000,"d":"-190,000.00 €"}},{"$f":"D35+D36","v":{"v":69750,"d":"69,750.00 €"}},{"v":82000,"d":"82,000.00 €"},{"v":90750,"d":"90,750.00 €"}]
[null,"Fluxo de caixa acumulado",{"$f":"C37","v":{"v":-190000,"d":"-190,000.00 €"}},{"$f":"C38+D37","v":{"v":-120250,"d":"-120,250.00 €"}},{"v":-38250,"d":"-38,250.00 €"},{"v":52500,"d":"52,500.00 €"}]
[null,"Total",{"$nulls":3},{"$f":"SUBTOTAL(109,Totais[3])","v":{"v":284916.6666666666,"d":"284,916.67 €"}}]
["As Métricas de Avaliação são calculadas automaticamente na tabela Métricas a partir da célula à direita."]
[null,"Métricas de Avaliação","Valores"]
[null,"Valor atual líquido (VAL)",{"$f":"C37+(NPV(TaxaDeRetorno,D37:F37))","v":{"v":9359.504132231377,"d":"9,359.50 €"}}]
[null,"Taxa interna de retorno (TIR)",{"$f":"IRR(C37:F37)","v":{"v":0.12655165144706393,"d":"12.66%"}}]
[null,"Período de recuperação do investimento (em anos)",{"$f":"IF(F38<=0,\"Excede 3 anos\",IF(E38<=0,(F37-F38)/F37+2,IF(D38<=0,(E37-E38)/E37+1,IF(C38<=0,(D37-D38)/D37,\"ND\"))))","v":{"v":2.4214876033057853,"d":"2.42"}}]